bitfinex/quotes_ETHUSD_20260228
["timestamp","ask_amount","ask_price","bid_price","bid_amount"]
[1772291393226,0.002,1891.4,1890.7,4.27302664]
[1772291394018,1.32378002,1891.4,1890.7,4.27302664]
[1772291394217,0.002,1891.4,1890.7,4.27302664]
[1772291394417,0.002,1891.4,1890.7,4.27402664]
[1772291394632,5.65262798,1891.4,1890.7,4.27402664]
[1772291394837,4.32885382,1891.3,1890.7,0.001]
[1772291396339,0.002,1891.5,1890.7,4.27402664]
[1772291396527,0.002,1891.5,1890.9,4.27302664]
[1772291397050,0.002,1891.5,1891.0,4.27302664]
[1772291398535,0.002,1891.5,1891.1,5.59500855]
[1772291398850,0.002,1891.5,1891.2,4.27302664]
[1772291399051,0.002,1891.7,1891.2,4.27302664]
[1772291399226,0.002,1891.7,1891.3,4.27302664]
[1772291400564,0.002,1891.7,1891.4,5.59479887]
[1772291400729,0.002,1891.7,1891.5,4.27302664]
[1772291400930,0.002,1891.7,1891.4,1.32177223]
[1772291401234,0.002,1891.7,1891.4,5.59479887]
[1772291401631,0.002,1891.7,1891.4,1.32177223]
[1772291401844,4.33085382,1891.7,1891.2,1.32190088]
[1772291402047,4.33085382,1891.7,1891.1,1.32194797]
[1772291402259,4.33085382,1891.7,1891.1,2.64384885]
[1772291402755,1.32163248,1891.6,1891.1,2.64384885]
[1772291402937,5.6504863,1891.6,1891.1,2.64384885]
[1772291403142,4.32885382,1891.5,1890.9,5.28834968]
[1772291403363,4.32885382,1891.5,1891.0,1.32190088]
[1772291404968,5.65060416,1891.5,1891.0,2.64392155]
[1772291405877,5.65055857,1891.5,1891.0,2.64392155]
[1772291406933,5.65248575,1891.7,1891.0,6.91694819]
[1772291407141,4.32885382,1891.6,1891.0,6.91694819]
[1772291407646,4.32885382,1891.6,1891.2,0.001]
[1772291408055,0.002,1891.4,1891.2,0.001]
[1772291408269,0.002,1891.7,1891.3,5.59492752]
[1772291408440,0.002,1891.7,1891.4,4.27302664]
[1772291408759,5.28728611,1892.1,1891.3,4.27302664]
[1772291408760,0.002,1891.5,1891.3,4.27302664]
[1772291409063,0.002,1892.1,1891.5,4.27302664]
[1772291409278,0.002,1892.1,1891.7,4.27302664]
[1772291409434,4.32885382,1892.6,1891.7,4.27302664]
[1772291409640,4.32885382,1892.6,1891.8,5.59092752]
[1772291409839,4.32885382,1892.6,1891.8,4.27302664]
[1772291410980,4.11707843,1892.4,1891.9,2.63931433]
[1772291411884,4.11707843,1892.7,1892.0,4.51417276]
[1772291412455,4.11707843,1892.2,1891.2,4.51517276]
[1772291412754,4.11707843,1892.2,1891.2,5.83707403]
[1772291413070,6.61317428,1892.1,1891.3,4.51417276]
[1772291413451,1.17481262,1892.0,1891.3,4.51417276]
[1772291414566,4.11707843,1892.0,1891.3,4.51417276]
[1772291414760,4.11707843,1892.0,1891.2,2.45990127]
[1772291415081,1.32149275,1891.8,1891.2,2.45990127]
[1772291416047,5.09425563,1892.0,1891.3,4.51417276]
[1772291416048,1.17481262,1891.7,1891.3,4.51417276]
[1772291416360,1.32142189,1892.0,1891.3,4.51417276]
[1772291416557,1.17481262,1891.9,1891.3,4.51417276]
[1772291417365,1.17481262,1891.9,1891.4,5.83594499]
[1772291417589,1.17481262,1891.9,1891.5,4.51417276]
[1772291417748,1.17481262,1891.9,1891.6,2.081]
[1772291420390,2.49623887,1891.9,1891.6,2.081]
[1772291421089,0.002,1891.8,1891.6,2.081]
[1772291423998,0.002,1891.8,1890.9,0.001]
[1772291423999,5.06891419,1891.6,1890.9,0.001]
[1772291424181,9.21133406,1891.4,1891.0,0.002]
[1772291424479,4.11707843,1891.4,1891.0,0.002]
[1772291425569,1.17481262,1891.3,1891.0,0.001]
[1772291426076,7.59098026,1891.2,1890.9,0.001]
[1772291426384,7.59098026,1891.2,1890.7,2.083]
[1772291426571,1.17481262,1891.1,1890.8,0.001]
[1772291428203,1.32205182,1891.0,1890.8,0.001]
[1772291428506,2.49686444,1891.0,1890.8,0.001]
[1772291432285,1.17481262,1891.0,1890.8,0.001]
[1772291432480,2.49687582,1891.0,1890.8,0.001]
[1772291433496,1.17481262,1891.0,1890.9,0.001]
[1772291433675,2.49686444,1891.0,1890.9,0.001]
[1772291434383,1.32205182,1891.0,1890.8,0.001]
[1772291434607,10.38414668,1890.9,1890.6,0.001]
[1772291434900,10.38414668,1890.9,1890.4,0.001]
[1772291434901,0.002,1890.5,1890.4,0.001]
[1772291435210,9.21133406,1890.5,1889.8,2.083]
[1772291435412,4.11707843,1890.1,1889.8,0.003]
[1772291435977,1.17181262,1890.0,1889.7,0.001]
[1772291436287,1.17181262,1890.0,1889.4,4.49274011]
[1772291436606,1.32282131,1889.9,1889.5,2.082]
[1772291436771,10.53415537,1889.9,1889.5,2.082]
[1772291437178,1.17181262,1889.8,1889.3,2.082]
[1772291437701,5.09425563,1889.6,1889.0,6.59617276]
[1772291437901,5.09425563,1889.6,1889.0,7.91961805]
[1772291438101,5.09425563,1889.6,1889.0,6.59617276]
[1772291438319,1.17181262,1889.5,1889.0,5.8376201]
[1772291438480,2.4949355,1889.5,1889.0,4.51417276]
[1772291440008,2.4949355,1889.5,1889.0,5.83762337]
[1772291440204,2.4949355,1889.5,1889.0,4.51417276]
[1772291440611,2.4949355,1889.5,1888.8,8.08254521]
[1772291440612,6.91932487,1889.5,1888.8,8.08254521]
[1772291440822,5.09425563,1889.1,1888.5,4.67500888]
[1772291441022,6.26606825,1889.4,1888.6,4.67500888]
[1772291441223,1.32312288,1889.5,1888.6,4.67500888]
[1772291441224,1.17181262,1889.2,1888.6,4.67500888]
[1772291441431,1.17181262,1889.4,1888.6,4.67500888]
[1772291442315,6.26606825,1889.4,1888.6,4.67500888]
[1772291442513,1.32324141,1889.3,1888.7,1.32366177]
[1772291442844,6.9194434,1889.3,1888.8,2.084]
[1772291443020,1.17181262,1889.2,1888.7,4.67500888]
[1772291443631,1.32310134,1889.5,1888.7,4.67500888]
[1772291443798,1.17181262,1889.3,1888.8,2.085]
[1772291444001,1.17181262,1889.3,1888.8,6.51460605]
[1772291444700,1.32310134,1889.5,1888.9,1.32352162]
[1772291444904,1.17181262,1889.4,1889.0,4.42960605]
[1772291445100,1.17181262,1889.6,1889.0,4.42960605]
[1772291445613,1.17181262,1889.5,1889.0,4.42960605]
[1772291445810,1.17181262,1889.7,1889.0,4.42960605]
[1772291446323,5.69600729,1890.0,1889.0,4.42960605]
[1772291446705,1.17181262,1889.9,1889.2,4.42960605]
[1772291446901,1.17181262,1890.1,1889.4,4.42960605]
[1772291447107,1.32261136,1890.3,1889.4,4.42960605]
[1772291447302,2.49442398,1890.3,1889.4,4.42960605]
[1772291447508,6.86763616,1890.3,1889.4,4.42960605]
[1772291447802,1.17181262,1890.2,1889.4,4.42960605]
[1772291448200,5.69573852,1890.4,1889.4,4.42960605]
[1772291448402,4.37321218,1890.2,1889.5,1.818]
[1772291448906,4.37321218,1890.2,1889.6,1.32303132]
[1772291449199,5.69583194,1890.2,1889.6,1.32303132]
[1772291449407,1.17181262,1890.1,1889.7,2.084]
[1772291450896,10.18851126,1890.6,1889.9,4.42960605]
[1772291450897,9.46746781,1890.6,1889.9,4.42960605]
[1772291451103,5.6954263,1890.8,1889.9,4.42960605]
[1772291451713,1.32412261,1890.9,1889.9,4.42960605]
[1772291451912,4.37321218,1890.8,1889.9,4.42960605]
[1772291452114,4.37321218,1890.6,1890.0,2.085]
[1772291452720,5.09425563,1890.7,1890.0,2.085]
[1772291452922,5.09425563,1890.7,1890.1,1.32268133]
[1772291452923,6.41657797,1890.7,1890.1,1.32268133]
[1772291453829,4.37321218,1890.6,1890.1,1.32268133]
[1772291455025,5.69560989,1890.6,1890.0,7.37582909]
[1772291455221,5.09425563,1890.4,1890.0,2.085]
[1772291455417,5.09425563,1890.4,1890.0,3.40774893]
[1772291455730,5.09425563,1890.4,1890.0,2.085]
[1772291456427,5.28886203,1890.8,1890.0,3.40775025]
[1772291456627,0.002,1890.9,1890.1,4.42960605]
[1772291456833,0.002,1890.9,1890.3,4.42960605]
[1772291457135,0.002,1890.9,1890.5,5.75200753]
[1772291457514,0.002,1890.9,1890.5,1.32240148]
[1772291457730,0.002,1890.9,1890.6,4.42960605]
[1772291458907,0.002,1891.2,1890.8,4.42960605]
[1772291459228,0.002,1891.2,1890.9,2.087]
[1772291459407,0.002,1891.2,1890.9,3.40910596]
[1772291461538,0.002,1891.2,1890.9,2.087]
[1772291461716,0.002,1891.2,1890.3,5.28974186]
[1772291461717,4.37321218,1891.1,1890.3,1.32254139]
[1772291461935,5.09425563,1890.4,1889.6,1.32302155]
[1772291462232,5.09425563,1890.6,1889.7,7.28506466]
[1772291462435,4.37321218,1891.0,1889.8,4.42960605]
[1772291463811,9.46746781,1890.7,1889.9,4.10027992]
[1772291464835,4.37321218,1890.6,1889.9,2.77745861]
[1772291465442,3.64309039,1890.3,1889.9,0.76645861]
[1772291466011,1.32261136,1890.2,1889.9,0.76645861]
[1772291466214,5.69582354,1890.2,1889.7,2.087]
[1772291466432,5.69582354,1890.2,1889.8,0.76645861]
[1772291467835,5.69582354,1890.2,1889.6,1.32296706]
[1772291468039,5.69582354,1890.2,1889.7,0.76645861]
[1772291469239,5.69582354,1890.2,1889.5,0.001]
[1772291469425,5.69582354,1890.2,1889.5,1.32409205]
[1772291471045,5.69582354,1890.2,1889.5,0.001]
[1772291471747,1.32261136,1890.2,1889.5,0.001]
[1772291472046,8.12312274,1890.1,1889.5,0.001]
[1772291472642,1.32257859,1890.3,1889.5,4.67240233]
[1772291473229,1.32257859,1890.3,1889.6,1.32403132]
[1772291473944,4.48003235,1890.4,1889.7,4.67140233]
[1772291474145,1.32248127,1890.4,1889.9,4.67140233]
[1772291474346,1.32231475,1890.7,1889.9,4.67140233]
[1772291474651,8.12312274,1890.6,1889.9,4.67140233]
[1772291475832,5.80225827,1890.8,1890.0,5.99415365]
[1772291477424,9.44534866,1890.8,1890.0,5.99415365]
[1772291477748,3.64309039,1890.6,1889.9,1.32278777]
[1772291477949,3.64309039,1890.4,1889.8,2.083]
[1772291478154,8.12312274,1890.4,1889.8,3.40588756]
[1772291478454,8.12312274,1890.4,1889.8,2.083]
[1772291478650,4.48003235,1890.3,1889.8,2.083]
[1772291478852,8.12312274,1890.2,1889.6,0.001]
[1772291479154,4.48003235,1890.2,1889.6,1.32402018]
[1772291479542,4.48003235,1890.2,1889.6,0.001]
[1772291479751,4.48003235,1890.1,1889.6,0.001]
[1772291479942,4.48003235,1890.1,1889.5,0.001]
[1772291479943,4.48003235,1889.9,1889.5,0.001]
[1772291480623,3.64309039,1889.6,1889.5,0.001]
[1772291480830,8.12312274,1889.6,1889.5,0.001]
[1772291481042,4.48003235,1889.5,1889.2,0.001]
[1772291481834,9.44636415,1889.3,1889.2,0.001]
[1772291482155,4.48003235,1889.2,1888.9,0.001]
[1772291483957,1.3233815,1889.1,1888.9,0.001]
[1772291484125,1.3233815,1889.1,1888.1,4.03728945]
[1772291484126,8.12312274,1889.0,1888.1,4.03728945]
[1772291484329,3.3853815,1889.1,1888.1,4.67140233]
[1772291484330,3.64309039,1888.8,1888.1,4.67140233]
[1772291484639,8.12312274,1888.8,1888.0,1.32414358]
[1772291484832,8.12312274,1888.6,1887.8,3.40226024]
[1772291485044,8.12312274,1888.6,1887.8,3.40226954]
[1772291485229,3.64309039,1888.8,1887.8,8.07367187]
[1772291485458,3.64309039,1888.6,1887.8,8.07367187]
[1772291485780,4.48003235,1888.7,1887.8,8.07367187]
[1772291486063,5.80374907,1888.7,1887.9,4.67140233]
[1772291487253,3.64309039,1888.6,1887.9,4.67140233]
[1772291487764,3.64309039,1888.6,1887.9,4.67240233]
[1772291487973,4.96673694,1888.8,1888.0,5.99555487]
[1772291488955,3.64309039,1888.8,1888.1,4.67140233]
[1772291489158,4.9664773,1889.1,1888.1,4.67140233]
[1772291489927,4.48003235,1889.3,1888.3,4.67140233]
[1772291489928,9.44641068,1889.3,1888.3,4.67140233]
[1772291490228,3.64309039,1889.1,1888.4,6.74940233]
[1772291490458,3.64309039,1888.9,1888.4,2.078]
[1772291490655,3.64309039,1888.9,1888.2,1.32401228]
[1772291490844,3.64309039,1888.7,1888.1,1.32402494]
[1772291491028,8.12312274,1888.9,1888.1,5.99542727]
[1772291491231,3.64309039,1888.9,1888.1,5.99542727]
[1772291491451,4.96637833,1889.3,1888.1,5.99542727]
[1772291491452,4.96637833,1889.3,1888.2,4.67140233]
[1772291491648,3.64309039,1889.3,1888.2,4.67140233]
[1772291491833,9.77258548,1889.5,1888.4,4.67140233]
[1772291491834,9.44622441,1889.5,1888.4,4.67140233]
[1772291492155,3.64309039,1888.7,1888.1,4.67140233]
[1772291493355,3.64309039,1888.7,1888.0,1.32415254]
[1772291493554,3.64309039,1888.7,1888.0,5.99555487]
[1772291493760,3.64309039,1888.2,1887.9,0.001]
[1772291493960,4.48003235,1888.6,1887.9,0.001]
[1772291493961,3.64309039,1888.4,1887.9,0.001]
[1772291496183,3.64309039,1888.4,1887.8,0.001]
[1772291496184,3.64309039,1888.0,1887.8,0.001]
[1772291497156,3.64309039,1888.2,1887.8,0.001]
[1772291497436,3.64309039,1888.0,1887.8,0.001]
[1772291498246,3.64309039,1888.0,1887.3,1.32463635]
[1772291498247,1.32422268,1887.9,1887.3,1.32463635]
[1772291498547,3.64309039,1887.8,1887.2,5.29884441]
[1772291498762,3.64309039,1888.4,1887.3,4.67140233]
[1772291498957,3.64309039,1888.2,1887.3,4.67140233]
[1772291499363,3.64309039,1888.4,1887.3,4.67140233]
[1772291499668,3.64309039,1888.8,1887.6,4.67140233]
[1772291499852,3.64309039,1888.8,1887.8,4.67140233]
[1772291500358,1.32366177,1888.7,1888.0,4.67140233]
[1772291500553,3.64309039,1888.9,1888.0,4.67140233]
[1772291500861,3.64309039,1889.1,1888.0,4.67140233]
[1772291501039,0.002,1888.8,1888.2,4.54589182]
[1772291501238,3.64309039,1889.2,1888.4,4.54589182]
[1772291501640,0.002,1888.9,1888.4,4.54589182]
[1772291502058,3.64309039,1888.8,1888.1,7.20810408]
[1772291502258,3.64309039,1888.8,1888.2,1.32401228]
[1772291502543,4.96669287,1888.8,1888.2,1.32401228]
[1772291502738,4.96668596,1888.8,1888.2,1.32401228]
[1772291502971,3.64309039,1888.6,1887.9,0.001]
[1772291503159,1.32359557,1888.8,1887.9,1.32522186]
[1772291503160,3.64309039,1888.5,1887.9,1.32522186]
[1772291503667,3.64309039,1888.5,1887.9,0.001]
[1772291504347,1.32387206,1888.4,1887.9,0.001]
[1772291506348,1.32401228,1888.2,1887.9,0.001]
[1772291506744,4.96708513,1888.3,1887.9,0.001]
[1772291506952,4.96708513,1888.3,1887.8,0.001]
[1772291506953,3.64309039,1888.1,1887.8,0.001]
[1772291507846,3.64309039,1888.1,1886.9,4.51929146]
[1772291507847,8.02309977,1887.9,1886.9,4.51929146]
[1772291508248,3.64309039,1887.7,1887.0,0.001]
[1772291508573,1.32443314,1887.6,1887.0,0.001]
[1772291508778,7.77336082,1887.8,1887.0,4.52029146]
[1772291508974,8.02309977,1887.7,1887.0,0.001]
[1772291509153,3.64309039,1887.7,1887.0,4.52029146]
[1772291509973,3.64309039,1887.1,1887.0,0.001]
[1772291510272,3.64309039,1887.3,1887.0,0.001]
[1772291510777,4.9677707,1887.3,1887.0,0.001]
[1772291511349,4.96765405,1887.5,1887.0,0.001]
[1772291511575,1.32448779,1887.6,1887.0,0.001]
[1772291512369,3.64309039,1887.1,1886.5,4.51929146]
[1772291512569,3.64309039,1887.2,1886.6,0.001]
[1772291512770,1.32478406,1887.1,1886.5,5.84549686]
[1772291512960,1.32478406,1887.1,1886.5,0.001]
[1772291513162,3.64309039,1887.0,1886.5,0.001]
[1772291514658,1.32478406,1887.1,1886.5,0.001]
[1772291514964,3.64309039,1886.6,1885.9,4.51929146]
[1772291515154,3.64309039,1886.6,1885.9,5.8449099]
[1772291515155,5.71409039,1886.6,1885.9,5.8449099]
[1772291515362,3.64309039,1886.8,1886.0,4.52029146]
[1772291516986,3.64309039,1886.6,1886.1,1.32548645]
[1772291517187,4.96812778,1886.8,1886.1,1.32548645]
[1772291517359,4.96809611,1886.8,1886.2,0.001]
[1772291517975,1.32478406,1887.1,1886.2,4.52029146]
[1772291518175,3.64309039,1887.0,1886.2,4.52029146]
[1772291518562,11.41885876,1887.2,1886.2,4.52029146]
[1772291518768,11.41885876,1887.2,1886.3,1.32534591]
[1772291518968,11.41885876,1887.2,1886.3,5.84463737]
[1772291519186,4.96784938,1887.2,1886.4,4.52029146]
[1772291520869,9.67832844,1887.4,1886.6,4.51929146]
[1772291520870,1.32462342,1887.4,1886.6,4.51929146]
[1772291521073,4.96771381,1887.4,1886.6,4.51929146]
[1772291521285,3.64309039,1887.2,1886.7,0.001]
[1772291521689,8.02309977,1887.2,1886.7,0.001]
[1772291522373,1.32462342,1887.4,1886.7,0.001]
[1772291522374,1.32459015,1887.4,1886.7,4.52029146]
[1772291522580,1.32443314,1887.6,1886.7,4.52029146]
[1772291523188,1.32443314,1887.6,1886.8,5.84428616]
[1772291523386,1.32637206,1887.7,1886.9,4.51929146]
[1772291523587,1.32637206,1887.7,1886.9,4.52029146]
[1772291523803,1.32636888,1887.7,1886.9,4.52029146]
[1772291523976,3.64309039,1887.6,1886.9,4.52029146]
[1772291524667,1.32636888,1887.7,1886.9,4.52029146]
[1772291524869,0.002,1887.7,1886.9,4.52029146]
[1772291525288,0.002,1887.7,1887.1,4.51929146]
[1772291525767,0.002,1887.7,1887.3,4.51929146]
[1772291526198,0.002,1887.8,1887.4,4.51929146]
[1772291527098,0.002,1888.0,1887.6,4.51929146]
[1772291527310,0.002,1888.0,1887.7,5.84365444]
[1772291527477,0.002,1888.0,1887.7,5.84465444]
[1772291527794,1.32385442,1888.5,1887.8,4.51929146]
[1772291528598,5.29568417,1889.1,1887.9,4.51929146]
[1772291528599,1.32555633,1888.9,1887.9,4.51929146]
[1772291528800,0.002,1888.9,1887.9,4.51929146]
[1772291529378,0.002,1888.9,1888.1,4.51929146]
[1772291530168,0.002,1888.2,1888.1,4.51929146]
[1772291530498,0.002,1888.9,1888.1,4.51929146]
[1772291531283,4.17319029,1888.8,1887.9,1.32417048]
[1772291531466,5.49685206,1888.7,1887.9,1.32417048]
[1772291532584,5.49685206,1888.7,1887.9,5.64972398]
[1772291533474,4.17319029,1888.6,1887.5,4.3255535]
[1772291533799,4.17319029,1888.6,1887.6,5.64998664]
[1772291533975,4.17319029,1888.6,1887.6,1.32443314]
[1772291534178,4.17319029,1888.6,1887.7,4.3255535]
[1772291534379,9.28815565,1888.5,1887.7,4.3255535]
[1772291534782,9.28815565,1888.5,1887.5,1.32447362]
[1772291535398,4.17319029,1888.4,1887.5,1.32447362]
[1772291535601,1.32394217,1888.3,1887.5,1.32447362]
[1772291535801,4.17319029,1888.1,1887.2,1.32471386]
[1772291535969,5.11496536,1888.2,1887.3,4.3255535]
[1772291536174,7.17796536,1888.2,1887.3,4.3255535]
[1772291536385,11.35115565,1888.2,1887.3,4.3255535]
[1772291536573,4.17319029,1888.1,1887.3,4.3255535]
[1772291536771,4.17319029,1888.1,1887.2,1.32471386]
[1772291536974,4.17319029,1888.1,1887.2,5.65026736]
[1772291537197,4.17319029,1888.1,1887.2,4.3255535]
[1772291537578,5.49734283,1888.0,1887.2,5.65026066]
[1772291537993,5.49734283,1888.0,1887.2,4.3255535]
[1772291538196,5.11496536,1887.9,1887.1,1.32477558]
[1772291538699,5.11496536,1887.9,1887.0,0.001]
[1772291538700,4.17319029,1887.8,1887.0,0.001]
[1772291538902,4.17319029,1887.5,1887.0,0.001]
[1772291539203,4.17319029,1887.5,1886.9,0.001]
[1772291539605,5.49776377,1887.4,1886.9,0.001]
[1772291540805,4.17319029,1887.3,1886.9,0.001]
[1772291541499,4.17319029,1887.3,1887.0,0.001]
[1772291541876,1.32471386,1887.2,1887.0,0.001]
[1772291542703,1.32469811,1887.3,1887.0,0.001]
[1772291542911,3.38969811,1887.3,1887.0,0.001]
[1772291543598,3.39057348,1887.4,1887.0,0.001]
[1772291545387,4.17319029,1887.2,1886.9,0.001]
[1772291545778,1.32478406,1887.1,1886.9,0.001]
[1772291545986,2.07,1887.0,1886.9,0.001]
[1772291546313,2.07,1887.0,1886.2,5.65093968]
[1772291547807,1.32492447,1886.9,1886.3,4.3255535]
[1772291548909,3.39590911,1887.0,1886.3,4.3255535]
[1772291549917,8.51087447,1887.0,1886.3,5.65089803]
[1772291550088,12.68406476,1887.0,1886.3,4.3255535]
[1772291550288,12.68406476,1887.0,1886.1,8.29178121]
[1772291550692,12.68406476,1887.0,1886.2,4.3255535]
[1772291550891,2.072,1886.9,1886.2,4.3255535]
[1772291551815,6.24519029,1886.9,1886.2,4.3255535]
[1772291552115,1.3249947,1886.8,1886.2,4.3255535]
[1772291552298,1.3249947,1886.8,1886.3,4.3255535]
[1772291552506,1.3247177,1887.2,1886.3,4.3255535]
[1772291552888,2.074,1887.8,1886.4,4.3255535]
[1772291553089,3.39834482,1887.8,1886.4,4.3255535]
[1772291553293,7.57153511,1887.8,1886.4,4.3255535]
[1772291554118,7.57153511,1887.8,1886.5,1.3252054]
[1772291554313,9.28815565,1887.6,1886.6,4.3255535]
[1772291555814,5.49953511,1887.8,1886.6,4.3255535]
[1772291556014,2.072,1887.7,1886.6,4.3255535]
[1772291556322,1.32443314,1887.6,1886.7,1.32506492]
[1772291556619,1.32443314,1887.6,1886.8,4.3255535]
[1772291556820,5.49952475,1887.8,1886.8,4.3255535]
[1772291557002,7.57052475,1887.8,1886.9,4.3255535]
[1772291557206,1.32633446,1887.8,1886.9,4.3255535]
[1772291557403,0.002,1887.8,1886.9,4.3255535]
[1772291558510,0.002,1887.8,1887.1,4.3255535]
[1772291560425,0.002,1887.8,1887.2,1.32471386]
[1772291560728,0.002,1887.8,1887.3,4.14601058]
[1772291561027,0.002,1888.1,1887.4,2.052]
[1772291561223,0.002,1888.1,1887.5,4.14601058]
[1772291562125,0.002,1888.1,1887.6,2.052]
[1772291562319,0.002,1888.1,1887.6,6.19801058]
[1772291562519,0.002,1888.1,1887.7,1.32436298]
[1772291564222,0.002,1888.1,1887.7,5.75201882]
[1772291565934,4.3534885,1888.1,1887.3,4.42765584]
[1772291566103,9.46645386,1888.0,1887.3,4.42765584]
[1772291566732,1.32422268,1887.9,1887.7,2.60973869]
[1772291567233,1.32422268,1887.9,1887.3,5.75227121]
[1772291568029,5.67566961,1888.0,1887.3,5.75227121]
[1772291568201,4.3514885,1887.9,1887.1,5.29897467]
[1772291568406,5.67566961,1888.0,1887.0,4.42765584]
[1772291568612,6.4154885,1887.9,1887.0,4.42765584]
[1772291568835,1.32422589,1887.9,1887.2,4.42765584]
[1772291569744,5.29861485,1888.0,1887.2,4.42765584]
[1772291570645,9.65010335,1888.0,1887.2,4.42765584]
[1772291571328,9.65010335,1888.0,1887.4,4.42765584]
[1772291571329,0.002,1888.0,1887.4,4.42765584]
[1772291572231,1.3261629,1888.0,1887.4,4.42765584]
[1772291573119,5.6776514,1888.0,1887.3,7.83035364]
[1772291573936,5.6776514,1888.0,1887.3,9.15496998]
[1772291574739,4.3514885,1887.9,1887.3,3.4026978]
[1772291575109,4.3514885,1887.9,1887.3,4.72733733]
[1772291575732,0.002,1888.0,1887.4,4.42765584]
[1772291577733,0.002,1888.0,1887.5,1.32450331]
[1772291577937,4.3534885,1888.0,1887.3,3.4026978]
[1772291578125,11.40045386,1888.0,1887.3,4.72733648]
[1772291578515,11.40045386,1888.0,1887.3,3.4026978]
[1772291579034,0.002,1888.0,1887.4,4.42765584]
[1772291579240,0.002,1888.0,1887.5,4.42765584]
[1772291579840,0.002,1888.0,1887.6,5.75208898]
[1772291580044,0.002,1888.0,1887.7,4.42765584]
[1772291580636,0.002,1888.3,1887.8,4.42765584]
[1772291580938,0.002,1888.3,1887.9,4.42765584]
[1772291581438,0.002,1888.3,1887.8,2.058]
[1772291582235,0.002,1888.3,1887.9,1.32422268]
[1772291582440,0.002,1888.3,1887.7,5.29728172]
[1772291582637,0.002,1888.3,1887.6,5.75208482]
[1772291582638,0.002,1887.9,1887.6,5.75208482]
[1772291583355,0.002,1887.9,1887.7,4.42765584]
[1772291583636,0.002,1888.3,1887.7,4.42765584]
[1772291583937,0.002,1888.2,1887.7,4.42765584]
[1772291584136,0.002,1888.2,1887.9,4.42765584]
[1772291584443,0.002,1888.2,1888.0,4.42765584]
[1772291585015,4.3534885,1888.9,1888.0,4.42765584]
[1772291586241,0.002,1888.9,1888.2,4.42765584]
[1772291590348,0.002,1888.9,1888.3,5.75159801]
[1772291594520,0.002,1888.9,1888.4,4.09143847]
[1772291595447,0.002,1888.9,1888.3,3.38594217]
[1772291595448,4.28605245,1888.9,1888.3,3.38594217]
[1772291596254,0.002,1888.8,1888.3,3.38594217]
[1772291599236,0.002,1888.8,1888.4,4.09143847]
[1772291599436,0.002,1889.1,1888.6,4.09143847]
[1772291601635,0.002,1889.1,1888.7,5.41510024]
[1772291603767,4.28405245,1889.7,1888.9,4.09143847]
[1772291603937,1.3229081,1889.8,1888.9,4.09143847]
[1772291604266,5.60675915,1890.1,1889.0,3.64873095]
[1772291604427,5.60675915,1890.1,1888.9,4.09143847]
[1772291604428,0.002,1890.3,1889.5,4.09143847]
[1772291604626,0.002,1890.3,1889.7,4.09143847]
[1772291604840,5.6086041,1890.3,1889.3,4.09143847]
[1772291605044,5.6086041,1890.3,1889.4,6.15843847]
[1772291605244,5.6086041,1890.3,1889.5,5.62343847]
[1772291605534,4.28605245,1890.3,1889.6,4.09143847]
[1772291605731,4.28405245,1890.1,1889.3,5.41461674]
[1772291605948,4.28405245,1890.1,1889.3,1.32317827]
[1772291606253,4.28405245,1889.9,1889.1,6.77081997]
[1772291606447,4.28405245,1889.9,1889.2,4.09143847]
[1772291608045,9.57463841,1890.2,1889.4,4.09143847]
[1772291608231,4.28405245,1890.1,1889.3,1.32324141]
[1772291608873,0.002,1890.0,1889.3,1.32324141]
[1772291609242,0.002,1890.0,1889.4,4.09143847]
[1772291609434,0.002,1890.0,1889.6,4.09143847]
[1772291610553,0.002,1890.0,1889.6,5.4144079]
[1772291611074,0.002,1890.0,1889.5,1.32309207]
[1772291612744,0.002,1890.0,1889.4,1.3231276]
[1772291612951,4.28405245,1889.8,1889.0,9.38518814]
[1772291613278,7.9327834,1889.7,1889.0,5.41489003]
[1772291613480,4.28405245,1889.9,1889.0,5.41489003]
[1772291615088,7.9327834,1889.7,1888.7,4.09143847]
[1772291616085,4.28405245,1889.6,1888.7,4.09143847]
[1772291616293,1.32289131,1889.8,1888.8,4.09143847]
[1772291616449,5.60694376,1889.8,1888.8,4.09143847]
[1772291617168,5.60694376,1889.8,1888.9,1.32352162]
[1772291617476,7.9327834,1889.7,1888.9,5.41496009]
[1772291617692,0.002,1890.0,1889.2,4.09143847]
[1772291617983,1.32475642,1890.0,1889.4,4.09143847]
[1772291618147,0.002,1890.0,1889.4,4.09143847]
[1772291620285,0.002,1890.0,1889.5,1.32310134]
[1772291620486,0.002,1890.0,1889.4,9.38388855]
[1772291620487,0.002,1890.0,1889.4,5.41460625]
[1772291620984,0.002,1890.0,1889.4,1.32316778]
[1772291621184,0.002,1890.0,1889.5,3.96806006]
[1772291622399,0.002,1890.0,1889.5,5.29114707]
[1772291622850,0.002,1890.0,1889.6,3.96806006]
[1772291623051,0.002,1890.0,1889.5,1.32308701]
[1772291623052,0.002,1890.3,1889.8,3.96806006]
[1772291623263,0.002,1889.9,1889.8,3.96806006]
[1772291624172,0.002,1890.2,1889.8,3.96806006]
[1772291624480,0.002,1890.2,1889.9,1.32282131]
[1772291624856,0.002,1890.2,1889.8,9.25934531]
[1772291626153,7.66302641,1890.2,1889.4,4.04404378]
[1772291626577,5.33695332,1890.2,1889.5,5.36714512]
[1772291627258,8.98568427,1890.2,1889.5,4.04404378]
[1772291627684,8.98568427,1890.2,1889.3,7.35873046]
[1772291627685,4.01229546,1889.9,1889.2,1.32327658]
[1772291627885,4.01229546,1889.7,1889.1,0.001]
[1772291628206,4.01229546,1889.5,1889.1,0.001]
[1772291628424,1.32317137,1889.4,1889.1,0.001]
[1772291628580,5.33546683,1889.4,1889.1,0.001]
[1772291628781,1.32312119,1889.5,1889.1,0.001]
[1772291629602,3.64873095,1889.2,1888.8,0.001]
[1772291629789,4.01229546,1889.4,1888.8,0.001]
[1772291629790,4.01229546,1889.3,1888.8,0.001]
[1772291629990,3.64873095,1889.2,1888.8,0.001]
[1772291630193,3.64873095,1888.9,1888.4,0.001]
[1772291630405,4.01229546,1888.8,1888.4,0.001]
[1772291630711,5.33592711,1888.8,1888.4,0.001]
[1772291632221,1.32355681,1888.9,1888.4,0.001]
[1772291632383,1.32350848,1889.0,1888.4,0.001]
[1772291633413,8.98446034,1889.1,1888.4,4.04504378]
[1772291633618,5.33572939,1889.1,1888.4,4.04504378]